[Event "Titled Tuesday Blitz June 20 Early 2023"]
[White "Girya, Olga"]
[Black "Quesada Perez, Yuniesky"]
[WhiteFideId "4195752"]
[BlackFideId "3504409"]
[WhiteElo "2263"]
[BlackElo "2585"]
[Result "1-0"]
[Round "2"]
[TimeControl "180+2"]
[Date "2023.06.20"]
[WhiteClock "0:00:04"]
[BlackClock "0:00:01"]
[Board "52"]

1. d4 {[%clk 0:03:00]}  d5 {[%clk 0:02:59]} 2. Nf3 {[%clk 0:03:00]}  Nf6 {[%clk 0:02:59]} 3. c4 {[%clk 0:03:00]}  c6 {[%clk 0:02:59]} 4. Qb3 {[%clk 0:02:59]}  dxc4 {[%clk 0:02:58]} 5. Qxc4 {[%clk 0:03:00]}  Bf5 {[%clk 0:02:58]} 6. g3 {[%clk 0:02:59]}  e6 {[%clk 0:02:58]} 7. Bg2 {[%clk 0:03:00]}  Nbd7 {[%clk 0:02:58]} 8. O-O {[%clk 0:02:58]}  Be7 {[%clk 0:02:58]} 9. Qb3 {[%clk 0:02:56]}  Qb6 {[%clk 0:02:58]} 10. Nbd2 {[%clk 0:02:56]}  O-O {[%clk 0:02:56]} 11. Nc4 {[%clk 0:02:56]}  Qa6 {[%clk 0:02:56]} 12. Bf4 {[%clk 0:02:55]}  Nb6 {[%clk 0:02:53]} 13. Bd6 {[%clk 0:02:35]}  Bxd6 {[%clk 0:02:28]} 14. Nxd6 {[%clk 0:02:36]}  Rad8 {[%clk 0:02:04]} 15. Nxf5 {[%clk 0:02:34]}  exf5 {[%clk 0:02:04]} 16. e3 {[%clk 0:02:28]}  Nbd5 {[%clk 0:02:02]} 17. a4 {[%clk 0:02:17]}  Qb6 {[%clk 0:01:54]} 18. Qxb6 {[%clk 0:02:09]}  axb6 {[%clk 0:01:54]} 19. a5 {[%clk 0:02:09]}  Ra8 {[%clk 0:01:39]} 20. axb6 {[%clk 0:02:05]}  Nxb6 {[%clk 0:01:40]} 21. Ne5 {[%clk 0:02:03]}  Nbd5 {[%clk 0:01:28]} 22. h3 {[%clk 0:01:50]}  g6 {[%clk 0:01:22]} 23. g4 {[%clk 0:01:46]}  f4 {[%clk 0:01:16]} 24. g5 {[%clk 0:01:22]}  Nh5 {[%clk 0:01:13]} 25. e4 {[%clk 0:01:22]}  Nb4 {[%clk 0:01:10]} 26. d5 {[%clk 0:00:59]}  Rfd8 {[%clk 0:00:32]} 27. Rxa8 {[%clk 0:00:38]}  Rxa8 {[%clk 0:00:31]} 28. Rc1 {[%clk 0:00:30]}  Kf8 {[%clk 0:00:18]} 29. Bf3 {[%clk 0:00:24]}  Ng7 {[%clk 0:00:16]} 30. Rc4 {[%clk 0:00:18]}  Na6 {[%clk 0:00:12]} 31. dxc6 {[%clk 0:00:18]}  bxc6 {[%clk 0:00:12]} 32. Rxc6 {[%clk 0:00:18]}  Nb4 {[%clk 0:00:11]} 33. Rc7 {[%clk 0:00:17]}  Ne6 {[%clk 0:00:07]} 34. Rxf7+ {[%clk 0:00:17]}  Kg8 {[%clk 0:00:07]} 35. h4 {[%clk 0:00:16]}  Ra5 {[%clk 0:00:07]} 36. Rb7 {[%clk 0:00:11]}  Rxe5 {[%clk 0:00:02]} 37. Rxb4 {[%clk 0:00:11]}  Rc5 {[%clk 0:00:03]} 38. Bg4 {[%clk 0:00:10]}  Nc7 {[%clk 0:00:03]} 39. Rb8+ {[%clk 0:00:10]}  Kf7 {[%clk 0:00:03]} 40. Rb7 {[%clk 0:00:10]}  Ke7 {[%clk 0:00:04]} 41. b4 {[%clk 0:00:10]}  Rc1+ {[%clk 0:00:04]} 42. Kg2 {[%clk 0:00:11]}  Kd6 {[%clk 0:00:05]} 43. b5 {[%clk 0:00:07]}  Rb1 {[%clk 0:00:04]} 44. b6 {[%clk 0:00:07]}  Nb5 {[%clk 0:00:04]} 45. Rxh7 {[%clk 0:00:06]}  Nd4 {[%clk 0:00:04]} 46. Rh8 {[%clk 0:00:05]}  Rxb6 {[%clk 0:00:03]} 47. h5 {[%clk 0:00:05]}  gxh5 {[%clk 0:00:03]} 48. Bxh5 {[%clk 0:00:05]}  Ke5 {[%clk 0:00:03]} 49. g6 {[%clk 0:00:02]}  Kf6 {[%clk 0:00:03]} 50. Rf8+ {[%clk 0:00:01]}  Kg7 {[%clk 0:00:03]} 51. Rf7+ {[%clk 0:00:02]}  Kg8 {[%clk 0:00:03]} 52. Rxf4 {[%clk 0:00:02]}  Ne6 {[%clk 0:00:03]} 53. Rf6 {[%clk 0:00:02]}  Kg7 {[%clk 0:00:03]} 54. Rf7+ {[%clk 0:00:02]}  Kg8 {[%clk 0:00:03]} 55. Re7 {[%clk 0:00:02]}  Nf4+ {[%clk 0:00:03]} 56. Kf3 {[%clk 0:00:02]}  Nxh5 {[%clk 0:00:04]} 57. Kg4 {[%clk 0:00:03]}  Nf6+ {[%clk 0:00:03]} 58. Kg5 {[%clk 0:00:03]}  Nxe4+ {[%clk 0:00:02]} 59. Rxe4 {[%clk 0:00:03]}  Kg7 {[%clk 0:00:02]} 60. f4 {[%clk 0:00:03]}  Rb1 {[%clk 0:00:02]} 61. Kf5 {[%clk 0:00:04]}  Rb5+ {[%clk 0:00:01]} 62. Re5 {[%clk 0:00:04]}  Rb6 {[%clk 0:00:02]} 63. Re7+ {[%clk 0:00:05]}  Kf8 {[%clk 0:00:02]} 64. Rf7+ {[%clk 0:00:04]}  Kg8 {[%clk 0:00:03]} 65. Rd7 {[%clk 0:00:04]}  Rc6 {[%clk 0:00:03]} 66. Kg5 {[%clk 0:00:05]}  Rc1 {[%clk 0:00:02]} 67. f5 {[%clk 0:00:05]}  Rc2 {[%clk 0:00:01]} 68. Kf6 {[%clk 0:00:04]}  Rc1 {[%clk 0:00:01]} 69. Rd8# {[%clk 0:00:04]} 1-0


[Site "https://www.chess.com"]

[Event "Titled Tuesday Blitz June 20 Early 2023"]
[White "Plotnikov, Pavel"]
[Black "Gadimbayli, Abdulla"]
[WhiteFideId "4170342"]
[BlackFideId "13404938"]
[WhiteElo "2298"]
[BlackElo "2386"]
[Result "0-1"]
[Round "2"]
[TimeControl "180+2"]
[Date "2023.06.20"]
[WhiteClock "0:00:15"]
[BlackClock "0:00:05"]
[Board "54"]

1. e4 {[%clk 0:03:00]}  e5 {[%clk 0:02:59]} 2. Nf3 {[%clk 0:03:00]}  d5 {[%clk 0:02:59]} 3. exd5 {[%clk 0:02:56]}  e4 {[%clk 0:03:00]} 4. Qe2 {[%clk 0:02:56]}  Nf6 {[%clk 0:03:00]} 5. Nc3 {[%clk 0:02:55]}  Be7 {[%clk 0:03:00]} 6. Ng5 {[%clk 0:02:28]}  O-O {[%clk 0:02:57]} 7. Ngxe4 {[%clk 0:02:22]}  Re8 {[%clk 0:02:56]} 8. d3 {[%clk 0:02:15]}  Nxd5 {[%clk 0:02:49]} 9. Nxd5 {[%clk 0:02:09]}  Qxd5 {[%clk 0:02:50]} 10. Be3 {[%clk 0:02:08]}  Nc6 {[%clk 0:02:43]} 11. g4 {[%clk 0:01:58]}  Nd4 {[%clk 0:01:27]} 12. Bxd4 {[%clk 0:01:55]}  Qxd4 {[%clk 0:01:27]} 13. c3 {[%clk 0:01:52]}  Qe5 {[%clk 0:01:15]} 14. Qf3 {[%clk 0:01:29]}  Bd6 {[%clk 0:00:41]} 15. Bg2 {[%clk 0:01:25]}  Bd7 {[%clk 0:00:38]} 16. O-O-O {[%clk 0:01:22]}  Bc6 {[%clk 0:00:34]} 17. Rhe1 {[%clk 0:01:15]}  Qxh2 {[%clk 0:00:29]} 18. Kb1 {[%clk 0:01:13]}  Rad8 {[%clk 0:00:22]} 19. g5 {[%clk 0:01:09]}  Qf4 {[%clk 0:00:21]} 20. Qh3 {[%clk 0:01:06]}  Bd7 {[%clk 0:00:20]} 21. Qh5 {[%clk 0:01:03]}  Bf5 {[%clk 0:00:21]} 22. Re3 {[%clk 0:00:59]}  Bg4 {[%clk 0:00:20]} 23. Qh1 {[%clk 0:00:44]}  Bxd1 {[%clk 0:00:20]} 24. Qxd1 {[%clk 0:00:44]}  Be7 {[%clk 0:00:09]} 25. Qh5 {[%clk 0:00:42]}  Qf5 {[%clk 0:00:06]} 26. Rf3 {[%clk 0:00:34]}  Qg6 {[%clk 0:00:06]} 27. Qh4 {[%clk 0:00:32]}  Bf8 {[%clk 0:00:04]} 28. Bh3 {[%clk 0:00:31]}  Rxd3 {[%clk 0:00:03]} 29. Bf5 {[%clk 0:00:29]}  Rxf3 {[%clk 0:00:03]} 30. Bxg6 {[%clk 0:00:29]}  hxg6 {[%clk 0:00:04]} 31. Qh1 {[%clk 0:00:20]}  Rf5 {[%clk 0:00:04]} 32. Qe1 {[%clk 0:00:19]}  Rfe5 {[%clk 0:00:04]} 33. f3 {[%clk 0:00:19]}  c6 {[%clk 0:00:04]} 34. Qg3 {[%clk 0:00:18]}  R5e7 {[%clk 0:00:03]} 35. Kc2 {[%clk 0:00:17]}  Re6 {[%clk 0:00:03]} 36. a4 {[%clk 0:00:17]}  a6 {[%clk 0:00:03]} 37. Qc7 {[%clk 0:00:17]}  R6e7 {[%clk 0:00:03]} 38. Qd6 {[%clk 0:00:17]}  Rxe4 {[%clk 0:00:03]} 39. Qd7 {[%clk 0:00:17]}  Re2+ {[%clk 0:00:03]} 40. Kb3 {[%clk 0:00:17]}  R2e7 {[%clk 0:00:04]} 41. Qg4 {[%clk 0:00:17]}  Re5 {[%clk 0:00:04]} 42. Qg2 {[%clk 0:00:17]}  Rf5 {[%clk 0:00:04]} 43. Qg4 {[%clk 0:00:17]}  Ree5 {[%clk 0:00:04]} 44. Qc4 {[%clk 0:00:17]}  Rc5 {[%clk 0:00:02]} 45. Qd4 {[%clk 0:00:17]}  Rxg5 {[%clk 0:00:03]} 46. Qd7 {[%clk 0:00:17]}  b5 {[%clk 0:00:03]} 47. a5 {[%clk 0:00:17]}  b4 {[%clk 0:00:04]} 48. cxb4 {[%clk 0:00:17]}  Rb5 {[%clk 0:00:04]} 49. Qxc6 {[%clk 0:00:17]}  Rxb4+ {[%clk 0:00:05]} 50. Ka2 {[%clk 0:00:17]}  Rxa5+ {[%clk 0:00:05]} 51. Kb1 {[%clk 0:00:15]}  Rab5 {[%clk 0:00:05]} 0-1


[Site "https://www.chess.com"]

[Event "Titled Tuesday Blitz June 20 Early 2023"]
[White "Garv Gaur"]
[Black "Simonian, Hrair"]
[WhiteFideId "45030839"]
[BlackFideId "13302337"]
[WhiteElo "2068"]
[BlackElo "2447"]
[Result "1-0"]
[Round "2"]
[TimeControl "180+2"]
[Date "2023.06.20"]
[WhiteClock "0:00:54"]
[BlackClock "0:00:03"]
[Board "56"]

1. e4 {[%clk 0:03:00]}  c5 {[%clk 0:02:59]} 2. Nc3 {[%clk 0:02:58]}  e6 {[%clk 0:03:00]} 3. Nge2 {[%clk 0:02:58]}  a6 {[%clk 0:03:00]} 4. a4 {[%clk 0:02:56]}  b6 {[%clk 0:02:59]} 5. g3 {[%clk 0:02:56]}  Bb7 {[%clk 0:03:00]} 6. Bg2 {[%clk 0:02:56]}  Nf6 {[%clk 0:03:01]} 7. d4 {[%clk 0:02:55]}  cxd4 {[%clk 0:03:00]} 8. Nxd4 {[%clk 0:02:55]}  Qc7 {[%clk 0:02:59]} 9. O-O {[%clk 0:02:54]}  Nc6 {[%clk 0:02:59]} 10. Bf4 {[%clk 0:02:45]}  e5 {[%clk 0:02:48]} 11. Nxc6 {[%clk 0:02:44]}  dxc6 {[%clk 0:02:49]} 12. Be3 {[%clk 0:02:43]}  Rd8 {[%clk 0:02:36]} 13. Qe2 {[%clk 0:02:43]}  a5 {[%clk 0:02:36]} 14. Rfd1 {[%clk 0:02:42]}  Rxd1+ {[%clk 0:02:32]} 15. Rxd1 {[%clk 0:02:42]}  Bb4 {[%clk 0:02:28]} 16. Bg5 {[%clk 0:02:39]}  Qe7 {[%clk 0:02:10]} 17. Bh3 {[%clk 0:02:23]}  h6 {[%clk 0:02:03]} 18. Rd7 {[%clk 0:02:17]}  hxg5 {[%clk 0:02:03]} 19. Rxe7+ {[%clk 0:02:16]}  Kxe7 {[%clk 0:02:02]} 20. Bg2 {[%clk 0:02:16]}  Rd8 {[%clk 0:01:53]} 21. Nd1 {[%clk 0:02:13]}  Rd2 {[%clk 0:01:52]} 22. Qf1 {[%clk 0:02:12]}  Rxc2 {[%clk 0:01:47]} 23. Ne3 {[%clk 0:02:12]}  Rxb2 {[%clk 0:01:40]} 24. Nf5+ {[%clk 0:02:12]}  Kf8 {[%clk 0:01:34]} 25. Qc1 {[%clk 0:01:58]}  Rd2 {[%clk 0:01:27]} 26. Qc4 {[%clk 0:01:32]}  Bc5 {[%clk 0:01:16]} 27. Ne3 {[%clk 0:01:28]}  Rd4 {[%clk 0:01:12]} 28. Qb3 {[%clk 0:01:25]}  Ba6 {[%clk 0:01:05]} 29. Nf5 {[%clk 0:01:16]}  Rd2 {[%clk 0:00:48]} 30. Ne3 {[%clk 0:01:16]}  Rd3 {[%clk 0:00:34]} 31. Qb2 {[%clk 0:01:16]}  Bd4 {[%clk 0:00:31]} 32. Qc2 {[%clk 0:01:12]}  Rc3 {[%clk 0:00:28]} 33. Qd2 {[%clk 0:01:12]}  Ra3 {[%clk 0:00:21]} 34. h4 {[%clk 0:00:58]}  Ra1+ {[%clk 0:00:14]} 35. Kh2 {[%clk 0:00:58]}  Bxe3 {[%clk 0:00:13]} 36. fxe3 {[%clk 0:00:59]}  g4 {[%clk 0:00:09]} 37. Qd8+ {[%clk 0:00:58]}  Ne8 {[%clk 0:00:09]} 38. Qa8 {[%clk 0:00:57]}  Be2 {[%clk 0:00:09]} 39. Qxc6 {[%clk 0:00:56]}  Ra2 {[%clk 0:00:08]} 40. Kg1 {[%clk 0:00:56]}  Bf3 {[%clk 0:00:08]} 41. Bxf3 {[%clk 0:00:56]}  gxf3 {[%clk 0:00:09]} 42. Qxb6 {[%clk 0:00:55]}  Rg2+ {[%clk 0:00:09]} 43. Kf1 {[%clk 0:00:55]}  Rxg3 {[%clk 0:00:10]} 44. Qc5+ {[%clk 0:00:55]}  Kg8 {[%clk 0:00:07]} 45. Qxe5 {[%clk 0:00:55]}  Rg2 {[%clk 0:00:06]} 46. Qxe8+ {[%clk 0:00:55]}  Kh7 {[%clk 0:00:07]} 47. Qxf7 {[%clk 0:00:54]}  Rb2 {[%clk 0:00:07]} 48. Qh5+ {[%clk 0:00:54]}  Kg8 {[%clk 0:00:03]} 49. Qxf3 {[%clk 0:00:54]} 1-0


[Site "https://www.chess.com"]

[Event "Titled Tuesday Blitz June 20 Early 2023"]
[White "Aarav Dengla"]
[Black "Maksimovic, Bojan"]
[WhiteFideId "45059756"]
[BlackFideId "14408120"]
[WhiteElo "2288"]
[BlackElo "2457"]
[Result "0-1"]
[Round "2"]
[TimeControl "180+2"]
[Date "2023.06.20"]
[WhiteClock "0:00:00"]
[BlackClock "0:00:31"]
[Board "61"]

1. e4 {[%clk 0:03:00]}  c5 {[%clk 0:02:59]} 2. Nf3 {[%clk 0:02:50]}  e6 {[%clk 0:02:58]} 3. g3 {[%clk 0:02:48]}  d5 {[%clk 0:02:56]} 4. exd5 {[%clk 0:02:48]}  exd5 {[%clk 0:02:57]} 5. Bg2 {[%clk 0:02:49]}  Nf6 {[%clk 0:02:57]} 6. d4 {[%clk 0:02:49]}  Nc6 {[%clk 0:02:48]} 7. O-O {[%clk 0:02:48]}  cxd4 {[%clk 0:02:46]} 8. Nxd4 {[%clk 0:02:47]}  Be7 {[%clk 0:02:46]} 9. c4 {[%clk 0:02:46]}  O-O {[%clk 0:02:46]} 10. cxd5 {[%clk 0:02:41]}  Nxd5 {[%clk 0:02:45]} 11. Nxc6 {[%clk 0:02:41]}  bxc6 {[%clk 0:02:45]} 12. Nc3 {[%clk 0:02:42]}  Be6 {[%clk 0:02:43]} 13. Nxd5 {[%clk 0:02:32]}  Bxd5 {[%clk 0:02:36]} 14. Be3 {[%clk 0:02:31]}  Qa5 {[%clk 0:02:32]} 15. a3 {[%clk 0:02:21]}  Rfd8 {[%clk 0:02:31]} 16. Qc2 {[%clk 0:02:20]}  Bf6 {[%clk 0:02:29]} 17. Rad1 {[%clk 0:02:09]}  h5 {[%clk 0:02:28]} 18. h4 {[%clk 0:02:07]}  Rab8 {[%clk 0:02:24]} 19. Bc1 {[%clk 0:01:26]}  Qb5 {[%clk 0:01:59]} 20. b4 {[%clk 0:01:08]}  a5 {[%clk 0:01:58]} 21. Bf4 {[%clk 0:01:02]}  axb4 {[%clk 0:01:45]} 22. Bxb8 {[%clk 0:00:57]}  b3 {[%clk 0:01:46]} 23. Qd3 {[%clk 0:00:37]}  Qxb8 {[%clk 0:01:38]} 24. Bxd5 {[%clk 0:00:35]}  Rxd5 {[%clk 0:01:39]} 25. Qb1 {[%clk 0:00:34]}  Bd4 {[%clk 0:01:37]} 26. Rd3 {[%clk 0:00:32]}  b2 {[%clk 0:01:37]} 27. Rfd1 {[%clk 0:00:29]}  c5 {[%clk 0:01:37]} 28. R1d2 {[%clk 0:00:30]}  Qd6 {[%clk 0:00:43]} 29. Kg2 {[%clk 0:00:24]}  c4 {[%clk 0:00:39]} 30. Rxd4 {[%clk 0:00:21]}  Rxd4 {[%clk 0:00:39]} 31. Rxb2 {[%clk 0:00:20]}  Qd5+ {[%clk 0:00:40]} 32. f3 {[%clk 0:00:19]}  Rd2+ {[%clk 0:00:39]} 33. Rxd2 {[%clk 0:00:18]}  Qxd2+ {[%clk 0:00:40]} 34. Kh3 {[%clk 0:00:17]}  c3 {[%clk 0:00:40]} 35. Qf5 {[%clk 0:00:13]}  g6 {[%clk 0:00:37]} 36. Qe5 {[%clk 0:00:13]}  c2 {[%clk 0:00:35]} 37. Qe8+ {[%clk 0:00:12]}  Kg7 {[%clk 0:00:35]} 38. Qe5+ {[%clk 0:00:12]}  Kh7 {[%clk 0:00:35]} 39. Qc7 {[%clk 0:00:12]}  Kg8 {[%clk 0:00:30]} 40. Qb8+ {[%clk 0:00:11]}  Kg7 {[%clk 0:00:30]} 41. Qe5+ {[%clk 0:00:00]}  Kf8 {[%clk 0:00:31]} 0-1


[Site "https://www.chess.com"]

[Event "Titled Tuesday Blitz June 20 Early 2023"]
[White "Lagarde, Maxime"]
[Black "Gavrilov, Maxim"]
[WhiteFideId "662399"]
[BlackFideId "24271454"]
[WhiteElo "2571"]
[BlackElo "1969"]
[Result "1-0"]
[Round "2"]
[TimeControl "180+2"]
[Date "2023.06.20"]
[WhiteClock "0:01:32"]
[BlackClock "0:00:21"]
[Board "62"]

1. d4 {[%clk 0:03:00]}  Nf6 {[%clk 0:02:59]} 2. Nf3 {[%clk 0:02:57]}  d5 {[%clk 0:02:59]} 3. g3 {[%clk 0:02:57]}  e6 {[%clk 0:02:53]} 4. Bg2 {[%clk 0:02:57]}  c6 {[%clk 0:02:48]} 5. O-O {[%clk 0:02:57]}  Nbd7 {[%clk 0:02:48]} 6. b3 {[%clk 0:02:58]}  b6 {[%clk 0:02:48]} 7. Bb2 {[%clk 0:02:58]}  Bb7 {[%clk 0:02:48]} 8. Nbd2 {[%clk 0:02:58]}  Be7 {[%clk 0:02:49]} 9. Re1 {[%clk 0:02:59]}  O-O {[%clk 0:02:49]} 10. c4 {[%clk 0:02:57]}  Rc8 {[%clk 0:02:49]} 11. e4 {[%clk 0:02:55]}  dxe4 {[%clk 0:02:48]} 12. Nxe4 {[%clk 0:02:56]}  Qc7 {[%clk 0:02:48]} 13. Nc3 {[%clk 0:02:53]}  Rfd8 {[%clk 0:02:46]} 14. Rc1 {[%clk 0:02:53]}  Bf8 {[%clk 0:02:43]} 15. Qe2 {[%clk 0:02:50]}  c5 {[%clk 0:02:36]} 16. dxc5 {[%clk 0:02:39]}  Bxc5 {[%clk 0:02:27]} 17. Nb5 {[%clk 0:02:38]}  Qb8 {[%clk 0:02:23]} 18. Ng5 {[%clk 0:02:33]}  Bxg2 {[%clk 0:02:19]} 19. Kxg2 {[%clk 0:02:34]}  a6 {[%clk 0:02:13]} 20. Nd4 {[%clk 0:02:25]}  Qb7+ {[%clk 0:02:05]} 21. Ndf3 {[%clk 0:02:23]}  h6 {[%clk 0:02:03]} 22. Nh3 {[%clk 0:02:14]}  e5 {[%clk 0:01:54]} 23. Bxe5 {[%clk 0:01:57]}  Nxe5 {[%clk 0:01:23]} 24. Qxe5 {[%clk 0:01:58]}  Rd3 {[%clk 0:01:17]} 25. Qe2 {[%clk 0:01:57]}  Rcd8 {[%clk 0:01:10]} 26. Rcd1 {[%clk 0:01:56]}  Rxd1 {[%clk 0:01:05]} 27. Rxd1 {[%clk 0:01:57]}  Re8 {[%clk 0:01:05]} 28. Qc2 {[%clk 0:01:49]}  g5 {[%clk 0:00:53]} 29. Qf5 {[%clk 0:01:48]}  Kg7 {[%clk 0:00:52]} 30. Nxg5 {[%clk 0:01:46]}  Re2 {[%clk 0:00:42]} 31. Nh3 {[%clk 0:01:44]}  Rxa2 {[%clk 0:00:32]} 32. Rf1 {[%clk 0:01:39]}  a5 {[%clk 0:00:29]} 33. Nf4 {[%clk 0:01:38]}  Rb2 {[%clk 0:00:27]} 34. Nd5 {[%clk 0:01:36]}  Nxd5 {[%clk 0:00:27]} 35. cxd5 {[%clk 0:01:37]}  Rxb3 {[%clk 0:00:25]} 36. Re1 {[%clk 0:01:32]}  Rb2 {[%clk 0:00:21]} 37. Qe5+ {[%clk 0:01:32]} 1-0


[Site "https://www.chess.com"]

[Event "Titled Tuesday Blitz June 20 Early 2023"]
[White "Avinash Ramesh"]
[Black "brm72"]
[WhiteFideId "45018340"]
[WhiteElo "2300"]
[BlackElo "2536"]
[Result "1/2-1/2"]
[Round "2"]
[TimeControl "180+2"]
[Date "2023.06.20"]
[WhiteClock "0:01:35"]
[BlackClock "0:00:22"]
[Board "63"]

1. d4 {[%clk 0:03:00]}  Nf6 {[%clk 0:02:59]} 2. c4 {[%clk 0:03:00]}  g6 {[%clk 0:02:59]} 3. Nf3 {[%clk 0:03:01]}  Bg7 {[%clk 0:03:00]} 4. g3 {[%clk 0:03:02]}  O-O {[%clk 0:03:00]} 5. Bg2 {[%clk 0:03:03]}  c6 {[%clk 0:03:00]} 6. O-O {[%clk 0:03:03]}  d5 {[%clk 0:03:01]} 7. cxd5 {[%clk 0:03:03]}  cxd5 {[%clk 0:03:02]} 8. Ne5 {[%clk 0:03:04]}  Ng4 {[%clk 0:03:01]} 9. Bf4 {[%clk 0:02:50]}  Nc6 {[%clk 0:02:31]} 10. Nxc6 {[%clk 0:02:49]}  bxc6 {[%clk 0:02:32]} 11. Nc3 {[%clk 0:02:49]}  e5 {[%clk 0:02:31]} 12. dxe5 {[%clk 0:02:46]}  Nxe5 {[%clk 0:02:32]} 13. Rc1 {[%clk 0:02:42]}  Re8 {[%clk 0:02:23]} 14. b3 {[%clk 0:02:36]}  Bd7 {[%clk 0:01:45]} 15. Qd2 {[%clk 0:02:36]}  Rc8 {[%clk 0:01:41]} 16. Rfd1 {[%clk 0:02:36]}  Be6 {[%clk 0:01:33]} 17. Na4 {[%clk 0:02:36]}  Nd7 {[%clk 0:01:32]} 18. Nc5 {[%clk 0:02:33]}  Nxc5 {[%clk 0:01:31]} 19. Rxc5 {[%clk 0:02:34]}  Qb6 {[%clk 0:01:30]} 20. Rdc1 {[%clk 0:02:26]}  Bf8 {[%clk 0:01:29]} 21. R5c3 {[%clk 0:02:18]}  Bb4 {[%clk 0:01:28]} 22. Be5 {[%clk 0:02:07]}  Bf5 {[%clk 0:01:17]} 23. Qf4 {[%clk 0:02:05]}  Rxe5 {[%clk 0:00:39]} 24. Qxe5 {[%clk 0:02:04]}  Bxc3 {[%clk 0:00:38]} 25. Qxc3 {[%clk 0:02:05]}  Be6 {[%clk 0:00:32]} 26. Qc5 {[%clk 0:02:03]}  Qxc5 {[%clk 0:00:30]} 27. Rxc5 {[%clk 0:02:02]}  Kf8 {[%clk 0:00:30]} 28. e4 {[%clk 0:02:01]}  dxe4 {[%clk 0:00:26]} 29. Bxe4 {[%clk 0:02:00]}  Bd7 {[%clk 0:00:26]} 30. b4 {[%clk 0:01:57]}  Ke7 {[%clk 0:00:27]} 31. a3 {[%clk 0:01:58]}  Kd6 {[%clk 0:00:27]} 32. f4 {[%clk 0:01:59]}  Re8 {[%clk 0:00:24]} 33. Rc4 {[%clk 0:01:44]}  f5 {[%clk 0:00:21]} 34. Bf3 {[%clk 0:01:42]}  Re3 {[%clk 0:00:21]} 35. Kg2 {[%clk 0:01:39]}  Rxa3 {[%clk 0:00:22]} 36. Rd4+ {[%clk 0:01:40]}  Kc7 {[%clk 0:00:22]} 37. Rc4 {[%clk 0:01:37]}  Kd6 {[%clk 0:00:21]} 38. Rd4+ {[%clk 0:01:35]}  Kc7 {[%clk 0:00:22]} 39. Rc4 {[%clk 0:01:35]}  Kb6 {[%clk 0:00:22]} 40. Rd4 {[%clk 0:01:35]}  Kc7 {[%clk 0:00:22]} 1/2-1/2


[Site "https://www.chess.com"]

[Event "Titled Tuesday Blitz June 20 Early 2023"]
[White "FoxOnTheRun97"]
[Black "Lorparizangeneh, Shahin"]
[BlackFideId "12521604"]
[WhiteElo "2535"]
[BlackElo "2526"]
[Result "0-1"]
[Round "2"]
[TimeControl "180+2"]
[Date "2023.06.20"]
[WhiteClock "0:00:48"]
[BlackClock "0:01:58"]
[Board "65"]

1. d4 {[%clk 0:02:58]}  d5 {[%clk 0:02:58]} 2. c4 {[%clk 0:02:58]}  c6 {[%clk 0:02:58]} 3. Nf3 {[%clk 0:02:57]}  Nf6 {[%clk 0:02:58]} 4. e3 {[%clk 0:02:57]}  Bf5 {[%clk 0:02:58]} 5. Qb3 {[%clk 0:02:53]}  Qb6 {[%clk 0:02:50]} 6. Nc3 {[%clk 0:02:51]}  e6 {[%clk 0:02:50]} 7. Bd2 {[%clk 0:02:46]}  h6 {[%clk 0:02:48]} 8. O-O-O {[%clk 0:02:21]}  Nbd7 {[%clk 0:02:35]} 9. Ne1 {[%clk 0:01:54]}  Ng4 {[%clk 0:02:32]} 10. e4 {[%clk 0:01:27]}  dxe4 {[%clk 0:02:23]} 11. Be3 {[%clk 0:01:27]}  Nxe3 {[%clk 0:02:16]} 12. fxe3 {[%clk 0:01:27]}  Nf6 {[%clk 0:02:17]} 13. h3 {[%clk 0:01:23]}  h5 {[%clk 0:02:15]} 14. g3 {[%clk 0:01:14]}  Qc7 {[%clk 0:02:12]} 15. Rg1 {[%clk 0:01:14]}  Bd6 {[%clk 0:02:12]} 16. Ne2 {[%clk 0:01:12]}  O-O-O {[%clk 0:02:06]} 17. c5 {[%clk 0:01:06]}  Be7 {[%clk 0:02:05]} 18. Ng2 {[%clk 0:01:04]}  Bxh3 {[%clk 0:01:58]} 19. Nc3 {[%clk 0:00:48]} 0-1


[Site "https://www.chess.com"]

[Event "Titled Tuesday Blitz June 20 Early 2023"]
[White "Lobanov, Sergei"]
[Black "Karamsetty, Jeevan"]
[WhiteFideId "24183750"]
[BlackFideId "2025337"]
[WhiteElo "2501"]
[BlackElo "2131"]
[Result "1-0"]
[Round "2"]
[TimeControl "180+2"]
[Date "2023.06.20"]
[WhiteClock "0:01:28"]
[BlackClock "0:00:22"]
[Board "66"]

1. d4 {[%clk 0:03:00]}  g6 {[%clk 0:02:59]} 2. e4 {[%clk 0:03:00]}  d6 {[%clk 0:02:59]} 3. Nc3 {[%clk 0:03:00]}  Bg7 {[%clk 0:02:58]} 4. f4 {[%clk 0:03:00]}  a6 {[%clk 0:02:57]} 5. Nf3 {[%clk 0:03:00]}  Nd7 {[%clk 0:02:57]} 6. Bd3 {[%clk 0:03:01]}  c5 {[%clk 0:02:57]} 7. Be3 {[%clk 0:02:56]}  cxd4 {[%clk 0:02:53]} 8. Bxd4 {[%clk 0:02:43]}  e5 {[%clk 0:02:52]} 9. fxe5 {[%clk 0:02:39]}  dxe5 {[%clk 0:02:50]} 10. Be3 {[%clk 0:02:39]}  Ne7 {[%clk 0:02:38]} 11. h4 {[%clk 0:02:36]}  O-O {[%clk 0:02:26]} 12. h5 {[%clk 0:02:36]}  f5 {[%clk 0:02:23]} 13. Bc4+ {[%clk 0:02:36]}  Kh8 {[%clk 0:02:23]} 14. hxg6 {[%clk 0:02:25]}  Nxg6 {[%clk 0:02:23]} 15. Rxh7+ {[%clk 0:02:19]}  Kxh7 {[%clk 0:02:21]} 16. Ng5+ {[%clk 0:02:19]}  Qxg5 {[%clk 0:01:57]} 17. Bxg5 {[%clk 0:02:20]}  Nf6 {[%clk 0:01:54]} 18. Nd5 {[%clk 0:02:04]}  Ng4 {[%clk 0:01:49]} 19. Qe2 {[%clk 0:01:47]}  b5 {[%clk 0:01:32]} 20. Bb3 {[%clk 0:01:47]}  f4 {[%clk 0:01:19]} 21. O-O-O {[%clk 0:01:42]}  Bh6 {[%clk 0:01:08]} 22. Rh1 {[%clk 0:01:30]}  Kg7 {[%clk 0:00:50]} 23. Bxh6+ {[%clk 0:01:28]}  Nxh6 {[%clk 0:00:51]} 24. Qh5 {[%clk 0:01:28]}  Rh8 {[%clk 0:00:22]} 25. Qg5 {[%clk 0:01:28]} 1-0


[Site "https://www.chess.com"]